fUSD/lending_fUSD_20240408
["ID","MTS","AMOUNT","RATE_DAILY","PERIOD"]
[321888078,1712583048279,-230.831838,0.0002888,7]
[321888079,1712583048290,-230.831838,0.0002888,7]
[321888080,1712583048300,-151.0,0.0002888,7]
[321888081,1712583048310,-151.0,0.0002888,7]
[321888082,1712583048320,-151.0,0.0002888,7]
[321888083,1712583048330,-151.0,0.0002888,7]
[321888084,1712583048341,-151.0,0.0002888,7]
[321888085,1712583048352,-213.462052,0.0002888,7]
[321888086,1712583048362,-151.0,0.0002888,7]
[321888087,1712583048373,-153.205536,0.0002888,7]
[321888088,1712583048383,-2929.173359,0.0002888,7]
[321888089,1712583048394,-2929.173359,0.0002888,7]
[321888090,1712583048404,-151.0,0.0002888,7]
[321888091,1712583048414,-151.0,0.0002888,7]
[321888092,1712583048424,-151.0,0.0002888,7]
[321888093,1712583048435,-151.0,0.0002888,7]
[321888094,1712583048444,-151.0,0.0002888,7]
[321888095,1712583048453,-151.0,0.0002888,7]
[321888096,1712583048462,-151.0,0.0002888,7]
[321888097,1712583048471,-162.618375,0.0002888,7]
[321888098,1712583048481,-151.0,0.0002888,7]
[321888099,1712583048490,-162.618375,0.0002888,7]
[321888100,1712583048500,-151.0,0.0002888,7]
[321888101,1712583048510,-151.0,0.0002888,7]
[321888102,1712583048520,-151.0,0.0002888,7]
[321888103,1712583048530,-151.0,0.0002888,7]
[321888104,1712583048540,-151.0,0.0002888,7]
[321888105,1712583048550,-151.0,0.0002888,7]
[321888106,1712583048560,-151.0,0.0002888,7]
[321888107,1712583048570,-151.46721717,0.00028889,2]
[321888108,1712583048579,-1000.0,0.00028892,7]
[321888109,1712583048589,-36925.1654544,0.000289,5]
[321888110,1712583048599,-1000.0,0.000289,2]
[321888111,1712583048609,-152.0,0.0002891,5]
[321888112,1712583048627,-962.92444301,0.0002891,15]
[321888113,1712583048636,-392.2534059,0.0002893,4]
[321888114,1712583048646,-85404.47337871,0.00028942,5]
[321888115,1712583048655,-150.0,0.00028999,10]
[321888116,1712583048665,-1574684.37493326,0.00029,7]
[321888117,1712583049518,-357.54046844,0.00029,7]
[321888118,1712583049530,-4592.68096292,0.00029,7]
[321888119,1712583049541,-1487.92238017,0.00029,7]
[321888120,1712583049575,-6036.1899951,0.00029,7]
[321888121,1712583050504,-781.36253595,0.00028662,2]
[321888122,1712583050706,-1724.93746405,0.00028662,2]
[321888123,1712583050716,-527.898348,0.0002888,7]
[321888124,1712583050726,-14394.37728118,0.00029,7]
[321888125,1712583050742,-3123.85130221,0.00029,7]
[321888126,1712583050754,-39285.71351358,0.00029,7]
[321888127,1712583050844,-7795.95484765,0.00029,7]
[321888128,1712583050856,-319.59244689,0.00029,7]
[321888129,1712583050870,-3660.99999997,0.00029,7]
[321888130,1712583066725,150.5,0.0001999,15]
[321888131,1712583066890,977.0,0.0001999,15]
[321888132,1712583067209,150.5,0.0001998,15]
[321888133,1712583067441,977.0,0.0001998,15]
[321888134,1712583067599,150.5,0.0001997,15]
[321888135,1712583067801,977.0,0.0001997,15]
[321888140,1712583107855,1855.13568505,0.0002351,20]
[321888142,1712583314046,20000.0,0.00031,30]
[321888143,1712583345331,2349.93858112,0.00019985,2]
[321888144,1712583346914,165.01791129,0.00019889,2]
[321888145,1712583350683,199.82821578,0.00019985,2]
[321888146,1712583351429,1285.21529181,0.00019985,2]
[321888147,1712583351449,924.75455757,0.00019985,2]
[321888148,1712583367386,155.0,0.00019985,2]
[321888149,1712583375196,2462.68515412,0.00019985,2]
[321888150,1712583389797,155.0,0.00019985,2]
[321888152,1712583391698,302.56028831,0.00019985,2]
[321888153,1712583391718,102.17073197,0.00019985,2]
[321888154,1712583415230,-550.75005717,0.00019984,2]
[321888155,1712583415249,-2354.31954713,0.00019984,2]
[321888156,1712583415269,-1094.9303957,0.00019985,2]
[321888157,1712583416991,-3226.51002963,0.00019985,2]
[321888158,1712583417012,-400.0,0.00019986,2]
[321888159,1712583417031,-150.0,0.00019986,2]
[321888160,1712583417051,-223.48997037,0.00019993,2]
[321888161,1712583418229,-292.71407055,0.00019993,2]
[321888162,1712583418249,-3707.28592945,0.00019994,2]
[321888163,1712583420119,-1019.99309033,0.00019994,2]
[321888164,1712583420140,-1251.17792584,0.00019998,2]
[321888165,1712583420161,-1728.82898383,0.0002,2]
[321888166,1712583421493,-4000.0,0.0002,2]
[321888167,1712583424047,-4000.0,0.0002,2]
[321888168,1712583427194,151.0,0.00028127,30]
[321888169,1712583427289,151.0,0.00027565,120]
[321888170,1712583467425,-900.0,0.0002,2]
[321888171,1712583562923,1048.82914375,0.00031,30]
[321888172,1712583613457,-200.0,0.00025,7]
[321888173,1712583613481,-200.0,0.00025,7]
[321888174,1712583613504,-200.0,0.00025,7]
[321888175,1712583613525,-200.0,0.00025,7]
[321888176,1712583613547,-200.0,0.00025,7]
[321888177,1712583613569,-200.0,0.00025,7]
[321888178,1712583613589,-200.0,0.00025,7]
[321888179,1712583613612,-200.0,0.00025,7]
[321888180,1712583613636,-200.0,0.00025,7]
[321888181,1712583613659,-200.0,0.00025,7]
[321888182,1712583613680,-200.0,0.00025,7]
[321888183,1712583613702,-200.0,0.00025,7]
[321888184,1712583613727,-200.0,0.00025,7]
[321888185,1712583613748,-221.64574774,0.00025,7]
[321888186,1712583613770,-200.0,0.00025,7]
[321888187,1712583613792,-200.0,0.00025,7]
[321888188,1712583613813,-200.0,0.00025,7]
[321888189,1712583613835,-200.0,0.00025,7]
[321888190,1712583613856,-200.0,0.00025,7]
[321888191,1712583648397,-1011.0,0.0002597,15]
[321888192,1712583648419,-684.0,0.0002597,15]
[321888193,1712583648441,-1011.0,0.0002598,15]
[321888194,1712583648463,-684.0,0.0002598,15]
[321888195,1712583648485,-684.0,0.0002599,15]
[321888196,1712583648510,-1011.0,0.0002599,15]
[321888197,1712583814627,3595.80139415,0.00031,30]
[321888198,1712583824864,-707.0,0.0002577,15]
[321888199,1712583824885,-707.0,0.0002578,15]
[321888200,1712583824906,-278.33,0.0002578,15]
[321888201,1712583824930,-707.0,0.0002579,15]
[321888202,1712583824952,-150.5,0.0002579,15]
[321888203,1712583824974,-478.0,0.0002587,15]
[321888204,1712583824995,-478.0,0.0002588,15]
[321888205,1712583825017,-478.0,0.0002589,15]
[321888206,1712583828561,1359.47,0.00024329,15]
[321888207,1712583879053,1000.0,0.00031,30]
[321888208,1712583902375,1000.0,0.00031,30]
[321888209,1712583902578,210.49005559,0.000205,5]
[321888210,1712583915551,1000.0,0.00031,30]
[321888211,1712583994464,2448.82914375,0.00031,30]
[321888222,1712584074696,20000.0,0.00031,30]
[321888226,1712584079095,-495.0,0.0002587,15]
[321888228,1712584079118,-155.0,0.0002587,15]
[321888229,1712584079140,-495.0,0.0002588,15]
[321888231,1712584079161,-155.0,0.0002588,15]
[321888233,1712584079183,-495.0,0.0002589,15]
[321888235,1712584079204,-155.0,0.0002589,15]
[321888237,1712584079228,-335.0,0.0002597,15]
[321888238,1712584079249,-335.0,0.0002598,15]
[321888240,1712584079274,-335.0,0.0002599,15]
[321888308,1712584149931,235.0,0.00025774,15]
[321888309,1712584150336,235.0,0.00025764,15]
[321888310,1712584150888,235.0,0.00025754,15]
[321888320,1712584179479,20000.0,0.00031,30]
[321888356,1712584232211,-809.2469135,0.00019889,2]
[321888357,1712584232222,-53.94974345,0.0001989,2]
[321888358,1712584232234,-258.72682461,0.0001989,2]
[321888359,1712584232243,-155.0,0.00019891,2]
[321888360,1712584232253,-126.70256071,0.00019892,2]
[321888361,1712584232266,-28.29743929,0.00019892,2]
[321888362,1712584232277,-2209.96984938,0.00019892,2]
[321888363,1712584232288,-555.70477283,0.00019892,2]
[321888364,1712584232403,-1794.23380829,0.00019892,2]
[321888365,1712584232414,-644.41312337,0.00019893,2]
[321888366,1712584232424,-6999.0,0.000199,2]
[321888367,1712584232432,-150.0,0.00019963,2]
[321888368,1712584232441,-150.0,0.00019973,2]
[321888369,1712584232450,-1298.76033688,0.00019978,2]
[321888370,1712584232459,-950.0,0.0002,2]
[321888371,1712584232469,-4525.33,0.0002,2]
[321888372,1712584232478,-640.23975986,0.00020547,2]
[321888373,1712584232488,-579.0,0.00020548,2]
[321888374,1712584232497,-155.39470595,0.00020818,2]
[321888375,1712584232507,-550.0,0.00021,3]
[321888376,1712584232517,-511.0,0.00021575,2]
[321888377,1712584232527,-272.12,0.00021975,2]
[321888378,1712584232536,-640.60613676,0.00022,2]
[321888379,1712584232545,-511.0,0.00022603,2]
[321888380,1712584232554,-600.0,0.00023,3]
[321888381,1712584232564,-544.53851712,0.00023,2]
[321888382,1712584232574,-400.0,0.00023407,2]
[321888384,1712584232583,-264.21,0.00023429,2]
[321888386,1712584232593,-1072.48,0.0002344,2]
[321888388,1712584232602,-4193.38,0.00023462,2]
[321888390,1712584232612,-186.26,0.00023476,2]
[321888392,1712584232623,-200.0,0.00023485,2]
[321888394,1712584232633,-3906.33,0.00023595,2]
[321888396,1712584232643,-373.92,0.00023622,2]
[321888399,1712584232653,-511.0,0.0002363,2]
[321888402,1712584232663,-221.16,0.00023686,2]
[321888405,1712584232673,-250.0,0.00023814,2]
[321888408,1712584232682,-250.0,0.00023833,2]
[321888411,1712584232691,-224.56326927,0.00024,2]
[321888414,1712584232701,-238.8,0.00024076,2]
[321888417,1712584232710,-600.0,0.00024235,2]
[321888419,1712584232720,-272.12,0.00024239,2]
[321888421,1712584232731,-155.25,0.00024475,2]
[321888423,1712584232741,-511.0,0.00024658,2]
[321888425,1712584232752,-2223.24347368,0.000248,2]
[321888427,1712584232762,-152.0,0.00024889,3]
[321888429,1712584232771,-19612.75,0.0002498,2]
[321888431,1712584232781,-155.0,0.00025,2]
[321888433,1712584232790,-300.0,0.00025,2]
[321888435,1712584232799,-374.0,0.00025,2]
[321888437,1712584232811,-650.0,0.00025,3]
[321888439,1712584232821,-200.0,0.00025,7]
[321888441,1712584232831,-200.0,0.00025,7]
[321888443,1712584232840,-200.0,0.00025,7]
[321888445,1712584232850,-200.0,0.00025,7]
[321888447,1712584232860,-4995.9525133,0.00025,2]
[321888449,1712584232871,-500.0,0.00025,2]
[321888451,1712584232881,-155.0,0.00025,2]
[321888453,1712584232890,-155.0,0.00025,2]
[321888455,1712584232900,-5000.0,0.00025299,2]
[321888457,1712584232910,-3628.7278,0.000253,2]
[321888459,1712584232919,-805.6403,0.000253,2]
[321888461,1712584232930,-180.82061113,0.00025398,2]
[321888463,1712584232940,-192.89939989,0.00025398,2]
[321888465,1712584232950,-173.04934003,0.00025398,2]
[321888467,1712584232961,-11174.97688619,0.00025398,2]
[321888469,1712584232970,-624.22352962,0.00025398,2]
[321888471,1712584232980,-3760.6569,0.00025399,2]
[321888508,1712584233334,-885.1521,0.000255,2]
[321888510,1712584233350,-500.0,0.00025523,2]
[321888512,1712584233361,-500.0,0.00025523,2]
[321888514,1712584233375,-500.0,0.00025523,2]
[321888516,1712584233385,-500.0,0.00025523,2]
[321888518,1712584233397,-319.35004569,0.00025523,2]
[321888520,1712584233407,-500.0,0.00025523,2]
[321888522,1712584233418,-500.0,0.00025523,2]
[321888524,1712584233428,-500.0,0.00025523,2]
[321888526,1712584233437,-500.0,0.00025523,2]
[321888529,1712584233447,-500.0,0.00025523,2]
[321888531,1712584233457,-500.0,0.00025523,2]
[321888533,1712584233468,-500.0,0.00025523,2]
[321888535,1712584233477,-500.0,0.00025523,2]
[321888537,1712584233487,-500.0,0.00025523,2]
[321888538,1712584233497,-500.0,0.00025523,2]
[321888540,1712584233506,-500.0,0.00025523,2]
[321888542,1712584233516,-500.0,0.00025523,2]
[321888545,1712584233526,-230.45692109,0.00025523,2]
[321888547,1712584233535,-500.0,0.00025523,2]
[321888549,1712584233545,-500.0,0.00025523,2]
[321888551,1712584233555,-500.0,0.00025523,2]
[321888553,1712584233564,-500.0,0.00025523,2]
[321888554,1712584233574,-574.11228977,0.00025523,2]
[321888556,1712584233583,-10653.53957505,0.00025524,2]
[321888558,1712584233592,-152.0,0.00025571,4]
[321888560,1712584233601,-158.40536406,0.00025598,2]
[321888562,1712584233610,-1007.77974625,0.00025599,2]
[321888564,1712584233621,-200.0,0.000256,9]
[321888567,1712584233630,-150.95011064,0.00025674,2]
[321888568,1712584233639,-311.08944914,0.00025674,2]
[321888570,1712584233648,-2136.3216,0.00025684,2]
[321888572,1712584233658,-207.94633197,0.00025684,2]
[321888574,1712584233667,-170.75857642,0.00025684,2]
[321888576,1712584233676,-152.06852254,0.00025685,2]
[321888578,1712584233686,-16127.56426027,0.00025685,2]
[321888581,1712584233695,-462.92738086,0.00025685,2]
[321888583,1712584233705,-176.4903007,0.00025685,2]
[321888585,1712584233714,-179.60290379,0.00025685,2]
[321888587,1712584233723,-511.0,0.00025685,2]
[321888588,1712584233733,-374.73592444,0.00025685,2]
[321888591,1712584233742,-2131.84814413,0.00025685,2]
[321888592,1712584233751,-500.0,0.000257,9]
[321888593,1712584233760,-848.96,0.00025774,3]
[321888594,1712584233769,-286.42994072,0.00025782,2]
[321888595,1712584233778,-249.81395908,0.00025782,2]
[321888596,1712584233788,-188.08752277,0.00025782,2]
[321888597,1712584233797,-1377.42452258,0.00025782,2]
[321888598,1712584233808,-356.80588203,0.00025782,2]
[321888599,1712584233818,-171.36159057,0.00025783,2]
[321888600,1712584233828,-99450.04668834,0.00025784,2]
[321888603,1712584233841,-2164.83,0.00025784,2]
[321888605,1712584233874,-360.05,0.00025784,2]
[321888606,1712584233912,-833.95478271,0.00025784,2]
[321888607,1712584233923,-3602.55,0.00025784,2]
[321888717,1712584239109,-20413.72231621,0.00025784,2]
[321888719,1712584239121,-4523.30828461,0.00025784,2]
[321888728,1712584239193,-719.31,0.00025784,2]
[321888732,1712584239222,-1016.78138287,0.00025784,2]
[321888734,1712584239233,-845.28099181,0.00025784,2]
[321888736,1712584239245,-3228.64182272,0.00025784,2]
[321888743,1712584239304,-1960.07189183,0.00025784,2]
[321888755,1712584239408,-1533936.63410285,0.00025784,2]
[321888757,1712584239417,-198.04823393,0.00025785,2]
[321888759,1712584239427,-700.0,0.000258,9]
[321888761,1712584239436,-383.4301804,0.000259,2]
[321888763,1712584239445,-169.22254171,0.000259,2]
[321888766,1712584239454,-1000.0,0.000259,9]
[321888768,1712584239464,-477267.0,0.000259,2]
[321888769,1712584239473,-152.06852239,0.00025993,2]
[321888772,1712584239483,-300.0,0.00026,2]
[321888774,1712584239493,-500000.0,0.00026,2]
[321888776,1712584239502,-1033.3,0.00026,2]
[321888778,1712584239511,-904.48,0.00026,2]
[321888780,1712584239520,-244.108,0.00026078,2]
[321888782,1712584239529,-271.0,0.00026078,2]
[321888784,1712584239539,-209.479,0.00026078,2]
[321888786,1712584239548,-1610.0,0.00026078,2]
[321888788,1712584239557,-442.0,0.00026078,2]
[321888790,1712584239566,-243.894,0.00026078,2]
[321888792,1712584239575,-250.0,0.00026078,2]
[321888794,1712584239584,-160.678,0.00026078,2]
[321888795,1712584239594,-265.539,0.00026078,2]
[321888798,1712584239603,-158.278,0.00026078,2]
[321888799,1712584239612,-250.0,0.00026078,2]
[321888802,1712584239623,-276.618,0.00026078,2]
[321888804,1712584239633,-1072.48,0.0002618,2]
[321888806,1712584239643,-152.0,0.00026254,5]
[321888807,1712584239652,-17636.0,0.000263,3]
[321888809,1712584239662,-152.06852239,0.00026302,2]
[321888811,1712584239671,-400.0,0.00026333,2]
[321888814,1712584239681,-16127.56426026,0.00026386,2]
[321888816,1712584239691,-272.12,0.00026503,2]
[321888818,1712584239701,-374.73592442,0.00026542,2]
[321888820,1712584239710,-152.06852239,0.0002661,2]
[321888822,1712584239720,-1500.0,0.00026659,2]
[321888824,1712584239729,-17636.0,0.000267,5]
[321888825,1712584239739,-511.0,0.00026712,2]
[321888826,1712584239748,-462.92738079,0.00026787,3]
[321888827,1712584239758,-152.06852239,0.00026919,2]
[321888828,1712584239768,-152.0,0.00026937,6]
[321888829,1712584239778,-155.0,0.00027,4]
[321888830,1712584239788,-300.0,0.00027,2]
[321888831,1712584239797,-700.0,0.00027,3]
[321888832,1712584239810,-150.95011064,0.00027037,2]
[321888834,1712584239820,-1359.47,0.00027068,15]
[321888836,1712584239831,-16127.56426026,0.00027087,2]
[321888838,1712584239841,-3425.19,0.00027123,2]
[321888840,1712584239851,-152.06852239,0.00027227,2]
[321888842,1712584239861,-600.0,0.00027264,2]
[321888844,1712584239873,-264.42001465,0.00027297,2]
[321888846,1712584239883,-4364.70323712,0.00027297,2]
[321888848,1712584239893,-277.8770521,0.00027297,2]
[321888850,1712584239902,-196.67,0.00027397,2]
[321888852,1712584239912,-250.0,0.00027397,2]
[321888855,1712584239921,-79739.52,0.00027397,2]
[321888858,1712584239931,-15757.2,0.00027397,2]
[321888861,1712584239940,-374.73592442,0.00027399,2]
[321888864,1712584239949,-904.48,0.000274,2]
[321888866,1712584239959,-377.92664714,0.000274,2]
[321888868,1712584239970,-152.06852239,0.00027536,2]
[321888870,1712584239979,-1470.33982002,0.0002755,2]
[321888872,1712584239989,-152.0,0.0002762,7]
[321888874,1712584239998,-511.0,0.0002774,2]
[321888876,1712584240008,-1500.0,0.00027755,2]
[321888878,1712584240018,-16127.56426026,0.00027788,2]
[321888880,1712584240027,-175.0,0.000278,11]
[321888882,1712584240037,-152.06852239,0.00027844,2]
[321888884,1712584240046,-462.92738079,0.00027889,3]
[321888886,1712584240055,-150.0,0.000279,2]
[321888888,1712584240066,-1629.52493091,0.00027929,14]
[321888890,1712584240075,-700.77742746,0.00028,2]
[321888892,1712584240085,-300.0,0.00028,2]
[321888894,1712584240095,-1033.3,0.00028,2]
[321888896,1712584240104,-500.0,0.00028029,2]
[321888898,1712584240114,-700.0,0.00028029,2]
[321888900,1712584240123,-3100.0,0.00028029,2]
[321888902,1712584240132,-152.06852239,0.00028153,2]
[321888905,1712584240146,-374.73592442,0.00028255,2]
[321888907,1712584240159,-176.49030068,0.00028256,2]
[321888910,1712584240171,-152.0,0.00028303,8]
[321888912,1712584240184,-150.0,0.000284,2]
[321888914,1712584240197,-150.95011064,0.000284,2]
[321888917,1712584240211,-1105.45093592,0.0002842,2]
[321888919,1712584240222,-800.0,0.00028444,8]
[321888921,1712584240233,-152.06852239,0.00028461,2]
[321888923,1712584240245,-16127.56426026,0.00028489,2]
[321888926,1712584240258,-904.48,0.000285,2]
[321888928,1712584240271,-800.0,0.00028515,8]
[321888930,1712584240287,-155.25,0.00028554,2]
[321888933,1712584240299,-200.0,0.00028587,2]
[321888935,1712584240311,-800.0,0.00028587,8]
[321888937,1712584240323,-500.0,0.00028587,2]
[321888940,1712584240336,-200.0,0.00028587,2]
[321888942,1712584240348,-298.88556177,0.00028596,2]
[321888944,1712584240358,-7036.43612234,0.000286,2]
[321888946,1712584240369,-298.88556177,0.00028609,2]
[321888948,1712584240382,-166.07677918,0.00028611,2]
[321888950,1712584240394,-298.88556177,0.00028614,2]
[321888953,1712584240406,-298.88556177,0.00028616,2]
[321888955,1712584240417,-150.0,0.00028618,2]
[321888957,1712584240429,-298.88556177,0.00028618,2]
[321888959,1712584240440,-9588.57436174,0.00028623,2]
[321888962,1712584240452,-800.0,0.00028628,8]
[321888964,1712584240464,-298.88556177,0.00028646,2]
[321888966,1712584240477,-9588.57436174,0.00028658,2]
[321888968,1712584240490,-298.88556177,0.00028662,2]
[321888971,1712584240501,-9588.57436174,0.00028664,2]
[321888973,1712584240511,-800.0,0.00028668,8]
[321888975,1712584240523,-9588.57436174,0.00028675,2]
[321888977,1712584240537,-298.88556177,0.00028681,2]
[321888979,1712584240548,-9588.57436174,0.00028681,2]
[321888981,1712584240562,-9588.57436174,0.00028687,2]
[321888984,1712584240576,-9588.57436174,0.00028691,2]
[321888986,1712584240588,-298.88556177,0.00028692,2]
[321888988,1712584240600,-9588.57436174,0.00028693,2]
[321888990,1712584240611,-9588.57436174,0.00028697,2]
[321888992,1712584240624,-411.81,0.00028705,2]
[321888995,1712584240634,-162.18,0.00028705,2]
[321888997,1712584240647,-150.0,0.00028705,2]
[321888999,1712584240658,-262.25,0.00028705,2]
[321889001,1712584240670,-156.1,0.00028705,2]
[321889004,1712584240682,-324.19,0.00028705,2]
[321889006,1712584240696,-337.0,0.00028717,5]
[321889008,1712584240708,-781.36,0.00028732,2]
[321889011,1712584240724,-272.12,0.00028767,2]
[321889013,1712584240737,-511.0,0.00028767,2]
[321889015,1712584240749,-152.06852239,0.0002877,2]
[321889017,1712584240759,-155.30824713,0.00028797,2]
[321889019,1712584240770,-1280.81395709,0.00028798,2]
[321889022,1712584240780,-700.72730826,0.00028798,2]
[321889024,1712584240791,-481.0,0.000288,13]
[321889026,1712584240801,-962.0,0.000288,13]
[321889028,1712584240813,-965.0,0.000288,13]
[321889030,1712584240825,-187.0,0.000288,13]
[321889033,1712584240837,-150.0,0.000288,2]
[321889035,1712584240847,-200.0,0.000288,13]
[321889037,1712584240857,-600.0,0.000288,2]
[321889039,1712584240870,-160.025886,0.000288,2]
[321889042,1712584240885,-12246.512225,0.000288,2]
[321889044,1712584240898,-447.034585,0.000288,2]
[321889046,1712584240909,-515.937809,0.000288,2]
[321889048,1712584240920,-191.970197,0.000288,2]
[321889051,1712584240930,-201.237514,0.000288,2]
[321889053,1712584240941,-160.812526,0.000288,2]
[321889055,1712584240951,-154.349164,0.000288,2]
[321889057,1712584240962,-225.0,0.0002885,15]
[321889059,1712584240974,-1500.0,0.00028851,2]
[321889061,1712584240984,-30436.31057025,0.00028893,2]
[321889063,1712584240995,-150.0,0.00028895,2]
[321889065,1712584241005,-425.6036,0.00028896,2]
[321889068,1712584241016,-500.0,0.00028896,2]
[321889070,1712584241027,-3496.7141,0.00028896,2]
[321889073,1712584241045,-1000.0,0.00028896,2]
[321889075,1712584241056,-4962.5215,0.00028896,2]
[321889077,1712584241067,-245000.0,0.00028896,2]
[321889079,1712584241077,-98855.2895,0.00028896,2]
[321889081,1712584241088,-5720.7986,0.00028896,2]
[321889083,1712584241099,-348.6267,0.00028896,3]
[321889085,1712584241110,-165.01791129,0.00028897,2]
[321889088,1712584241122,-206.59266165,0.00028899,2]
[321889090,1712584241134,-5825.99102334,0.00028899,2]
[321889092,1712584241145,-150.0,0.000289,2]
[321889094,1712584241156,-1300.0,0.000289,10]
[321889096,1712584241167,-775.28062,0.000289,2]
[321889098,1712584241178,-775.28062,0.000289,2]
[321889101,1712584241188,-775.28062,0.000289,2]
[321889103,1712584241199,-775.28062,0.000289,2]
[321889105,1712584241211,-775.28062,0.000289,2]
[321889107,1712584241222,-775.28062,0.000289,2]
[321889109,1712584241233,-1072.48,0.0002892,2]
[321889112,1712584241245,-152.0,0.00028986,9]
[321889114,1712584241257,-462.92738079,0.00028991,4]
[321889116,1712584241273,-238.64196047,0.00028993,2]
[321889118,1712584241285,-205.36093141,0.00028994,2]
[321889120,1712584241296,-233.96732315,0.00028994,2]
[321889122,1712584241308,-165.37702993,0.00028994,2]
[321889125,1712584241319,-309.98182803,0.00028994,2]
[321889127,1712584241331,-537.88379237,0.00028994,2]
[321889129,1712584241343,-256.02612092,0.00028994,2]
[321889131,1712584241354,-155.046986,0.00028995,2]
[321889133,1712584241366,-155.20654588,0.00028996,2]
[321889135,1712584241379,-601.30438827,0.00028996,2]
[321889138,1712584241390,-155.31508233,0.00028996,2]
[321889140,1712584241400,-155.0,0.00028996,2]
[321889142,1712584241411,-654.6711174,0.00028996,2]
[321889144,1712584241423,-284.2826542,0.00028996,2]
[321889146,1712584241434,-295.8857038,0.00028996,2]
[321889149,1712584241445,-1238.94442072,0.00028996,2]
[321889151,1712584241456,-169.64026488,0.00028996,2]
[321889153,1712584241467,-254.65583011,0.00028996,2]
[321889155,1712584241478,-205.79634065,0.00028996,2]
[321889157,1712584241489,-174.2996959,0.00028996,2]
[321889160,1712584241501,-788.71072943,0.00028996,2]
[321889162,1712584241511,-407.22475255,0.00028996,2]
[321889164,1712584241522,-155.39293265,0.00028996,2]
[321889166,1712584241533,-211.88174848,0.00028996,2]
[321889167,1712584241544,-331.35254529,0.00028996,2]
[321889168,1712584241555,-244.97936461,0.00028996,2]
[321889169,1712584241567,-177.56243863,0.00028996,2]
[321889170,1712584241578,-266.6304209,0.00028996,2]
[321889171,1712584241590,-155.0,0.00028996,2]
[321889172,1712584241601,-212.59855795,0.00028996,2]
[321889175,1712584241612,-184.99361137,0.00028996,2]
[321889179,1712584241624,-156.0026956,0.00028996,3]
[321889182,1712584241637,-155.0,0.00028996,2]
[321889185,1712584241648,-180.68788228,0.00028996,2]
[321889187,1712584241660,-188.00024433,0.00028996,2]
[321889189,1712584241672,-350.76102204,0.00028996,2]
[321889192,1712584241684,-155.0,0.00028996,2]
[321889194,1712584241696,-240.02740078,0.00028996,2]
[321889196,1712584241707,-157.31336717,0.00028996,2]
[321889198,1712584241718,-200.62221287,0.00028996,2]
[321889200,1712584241730,-300.1984667,0.00028996,2]
[321889203,1712584241741,-626.87241806,0.00028996,2]
[321889205,1712584241753,-240.08283614,0.00028996,2]
[321889207,1712584241764,-157.09483559,0.00028996,2]
[321889209,1712584241776,-881.36334579,0.00028996,2]
[321889211,1712584241788,-163.70329151,0.00028996,2]
[321889214,1712584241800,-155.65339939,0.00028996,2]
[321889216,1712584241812,-171.91331219,0.00028996,2]
[321889218,1712584241823,-261.16504767,0.00028996,2]
[321889220,1712584241834,-155.0,0.00028996,2]
[321889222,1712584241845,-180.59872258,0.00028996,2]
[321889224,1712584241856,-500.0,0.00028996,2]
[321889226,1712584241867,-304.58040453,0.00028996,2]
[321889228,1712584241880,-2729.30649513,0.00028996,2]
[321889231,1712584241891,-873.90846262,0.00028996,2]
[321889233,1712584241901,-155.62348997,0.00028996,2]
[321889235,1712584241912,-264.23455154,0.00028996,2]